bitfinex-derivatives/quotes_BTCF0:USTF0_20241006
["timestamp","ask_amount","ask_price","bid_price","bid_amount"]
[1728252453361,0.03090974,62497.0,62492.0,0.001]
[1728252453563,0.064005,62498.0,62492.0,0.001]
[1728252453758,0.03090987,62497.0,62492.0,0.001]
[1728252453958,0.064005,62498.0,62492.0,0.002]
[1728252454679,0.07009478,62497.0,62492.0,0.002]
[1728252454873,0.07009478,62497.0,62492.0,0.001]
[1728252455080,0.07009478,62497.0,62495.0,0.001]
[1728252455759,0.07209478,62497.0,62492.0,0.002]
[1728252455962,0.07009478,62496.0,62492.0,0.002]
[1728252456264,0.03090956,62495.0,62492.0,0.002]
[1728252456466,0.03090956,62494.0,62492.0,0.001]
[1728252456666,0.03090956,62493.0,62492.0,0.001]
[1728252457775,0.03090956,62493.0,62489.0,0.17]
[1728252457977,0.03090956,62492.0,62491.0,0.064012]
[1728252459368,0.03290956,62492.0,62491.0,0.065012]
[1728252460780,0.04190956,62492.0,62491.0,0.066012]
[1728252461373,0.04190902,62492.0,62491.0,0.066012]
[1728252462676,0.011,62492.0,62491.0,0.066012]
[1728252469982,0.08109334,62492.0,62491.0,0.066012]
[1728252471375,0.08109309,62492.0,62491.0,0.066012]
[1728252471683,0.011,62492.0,62491.0,0.066012]
[1728252471883,0.08109309,62492.0,62491.0,0.066012]
[1728252472085,0.09929922,62492.0,62491.0,0.066012]
[1728252472275,0.13020803,62492.0,62491.0,0.066012]
[1728252477686,0.011,62492.0,62491.0,0.066012]
[1728252479582,0.04190899,62492.0,62491.0,0.066012]
[1728252479892,0.011,62492.0,62491.0,0.066012]
[1728252480081,0.04190932,62492.0,62491.0,0.066012]
[1728252481287,0.011,62492.0,62491.0,0.066012]
[1728252481490,0.19235485,62506.0,62501.0,0.064002]
[1728252481491,0.0331,62506.0,62501.0,0.064002]
[1728252481695,0.07008704,62502.0,62501.0,0.594802]
[1728252481994,0.0037,62510.0,62501.0,1.674802]
[1728252482196,0.00088,62513.0,62508.0,0.063995]
[1728252482197,0.03090337,62509.0,62508.0,0.063995]
[1728252482389,0.0037,62519.0,62508.0,0.17]
[1728252482692,0.032,62520.0,62518.0,0.17]
[1728252482899,0.03917218,62519.0,62518.0,0.17]
[1728252483585,0.009,62519.0,62514.0,0.17]
[1728252484386,0.009,62519.0,62514.0,0.233988]
[1728252484890,0.03917217,62518.0,62514.0,0.233988]
[1728252485089,0.03917217,62517.0,62514.0,0.233988]
[1728252485293,0.03917217,62516.0,62514.0,0.233988]
[1728252485501,0.032,62520.0,62514.0,0.234988]
[1728252485795,0.03917209,62519.0,62514.0,0.235988]
[1728252485996,0.03917209,62518.0,62514.0,0.235988]
[1728252486198,0.03917209,62517.0,62514.0,0.234988]
[1728252486401,0.032,62520.0,62514.0,0.235988]
[1728252486588,0.0391721,62519.0,62514.0,0.235988]
[1728252486783,0.0391721,62518.0,62514.0,0.235988]
[1728252486996,0.0391721,62517.0,62514.0,0.235988]
[1728252487299,0.032,62520.0,62514.0,0.172]
[1728252487485,0.00239972,62522.0,62519.0,0.17]
[1728252487885,0.00239972,62522.0,62521.0,0.063981]
[1728252489092,0.00239972,62522.0,62521.0,0.064981]
[1728252489397,0.00239972,62522.0,62521.0,0.065981]
[1728252490494,0.00239972,62522.0,62521.0,0.002]
[1728252492307,0.03329696,62522.0,62521.0,0.002]
[1728252492902,0.05149712,62522.0,62521.0,0.002]
[1728252493105,0.12156473,62522.0,62521.0,0.002]
[1728252494809,0.18554473,62522.0,62521.0,0.002]
[1728252496099,0.54634473,62522.0,62521.0,0.002]
[1728252497801,0.18554473,62522.0,62521.0,0.002]
[1728252498007,0.72171439,62522.0,62521.0,0.002]
[1728252498304,0.36091439,62522.0,62521.0,0.002]
[1728252498502,0.063988,62515.0,62512.0,0.03232231]
[1728252498698,0.11916501,62514.0,62512.0,0.02862231]
[1728252498896,0.07006761,62513.0,62510.0,0.17]
[1728252499199,0.063988,62515.0,62510.0,0.17]
[1728252499200,0.07006884,62512.0,62510.0,0.17]
[1728252499402,0.07006884,62511.0,62510.0,0.26229576]
[1728252499810,0.0037,62519.0,62510.0,0.67822376]
[1728252500000,0.0323,62521.0,62518.0,0.17]
[1728252500203,0.03089692,62520.0,62518.0,0.17]
[1728252500503,0.03089709,62519.0,62518.0,0.17]
[1728252500709,0.0323,62521.0,62518.0,0.17]
[1728252500911,0.03089635,62520.0,62518.0,0.17]
[1728252501102,0.0323,62521.0,62518.0,0.17]
[1728252501302,0.03089654,62520.0,62518.0,0.17]
[1728252501604,0.03089654,62520.0,62518.0,0.171]
[1728252501605,0.001,62520.0,62518.0,0.171]
[1728252502304,0.0323,62521.0,62518.0,0.171]
[1728252502305,0.0343,62521.0,62518.0,0.171]
[1728252502613,0.03089627,62520.0,62518.0,0.172]
[1728252502804,0.003,62521.0,62518.0,0.172]
[1728252502805,0.003,62521.0,62518.0,0.235984]
[1728252503006,0.001,62520.0,62518.0,0.235984]
[1728252503305,0.001,62520.0,62519.0,0.063983]
[1728252503512,0.001,62520.0,62519.0,0.094083]
[1728252503699,0.003,62521.0,62520.0,0.063982]
[1728252504215,0.002,62521.0,62520.0,0.063982]
[1728252504613,0.00239972,62522.0,62520.0,0.063982]
[1728252505310,0.00239972,62522.0,62521.0,0.063981]
[1728252506308,0.00439972,62522.0,62521.0,0.063981]
[1728252506810,0.00439972,62522.0,62521.0,0.064981]
[1728252508308,0.00439972,62522.0,62521.0,0.065981]
[1728252508611,0.0352929,62522.0,62521.0,0.065981]
[1728252509117,0.0352929,62522.0,62521.0,0.426781]
[1728252509316,0.00439972,62522.0,62521.0,0.426781]
[1728252509709,0.0352929,62522.0,62521.0,0.426781]
[1728252510610,0.0352929,62522.0,62521.0,0.065981]
[1728252510910,0.0352929,62522.0,62521.0,0.426781]
[1728252511121,0.0352929,62522.0,62521.0,0.065981]
[1728252511420,0.0352929,62522.0,62521.0,0.426781]
[1728252514619,0.03529114,62522.0,62521.0,0.426781]
[1728252515005,0.09265057,62522.0,62521.0,0.426781]
[1728252515209,0.08437913,62522.0,62521.0,0.426781]
[1728252515411,0.00439972,62522.0,62521.0,0.426781]
[1728252515717,0.09265057,62522.0,62521.0,0.426781]
[1728252515910,0.12354199,62522.0,62521.0,0.426781]
[1728252518820,0.12354827,62522.0,62521.0,0.426781]
[1728252519235,0.16356216,62522.0,62521.0,0.426781]
[1728252519425,0.28328516,62522.0,62521.0,0.426781]
[1728252519724,0.12354827,62522.0,62521.0,0.426781]
[1728252519924,0.16413691,62522.0,62521.0,0.426781]
[1728252520109,0.25239204,62522.0,62521.0,0.426781]
[1728252520317,0.16413691,62522.0,62521.0,0.426781]
[1728252520518,0.16413691,62522.0,62521.0,0.536781]
[1728252520917,0.28328546,62522.0,62521.0,0.536781]
[1728252521314,0.12354827,62522.0,62521.0,0.536781]
[1728252521519,0.16414344,62522.0,62521.0,0.536781]
[1728252521820,0.19503686,62522.0,62521.0,0.536781]
[1728252522025,0.28329199,62522.0,62521.0,0.536781]
[1728252522821,0.19503686,62522.0,62521.0,0.536781]
[1728252523124,0.03529314,62522.0,62521.0,0.536781]
[1728252523724,0.03529258,62522.0,62521.0,0.536781]
[1728252525425,0.00439972,62522.0,62521.0,0.536781]
[1728252526534,0.03529176,62522.0,62521.0,0.536781]
[1728252527320,0.03529176,62522.0,62521.0,0.065981]
[1728252527620,0.03529176,62522.0,62521.0,0.002]
[1728252527820,0.03529176,62522.0,62513.0,0.424789]
[1728252527821,0.61827824,62522.0,62513.0,0.424789]
[1728252528118,0.61827824,62522.0,62513.0,0.534789]
[1728252528119,0.11,62519.0,62513.0,0.534789]
[1728252528319,0.10076223,62518.0,62513.0,0.534789]
[1728252528524,0.10076223,62518.0,62513.0,0.424789]
[1728252528525,0.03089204,62517.0,62513.0,0.424789]
[1728252528926,0.03089204,62517.0,62513.0,0.426789]
[1728252529921,0.15974372,62517.0,62513.0,0.426789]
[1728252530125,0.22980584,62517.0,62513.0,0.426789]
[1728252530324,0.11915916,62516.0,62513.0,0.426789]
[1728252530517,0.11915916,62515.0,62513.0,0.426789]
[1728252530725,0.31000288,62515.0,62513.0,0.426789]
[1728252531028,0.15185916,62514.0,62513.0,0.426789]
[1728252532127,0.15485916,62514.0,62513.0,0.425789]
[1728252532425,0.15785916,62514.0,62513.0,0.426789]
[1728252533531,0.10876212,62514.0,62513.0,0.426789]
[1728252534242,0.15786005,62514.0,62513.0,0.3628]
[1728252534935,0.31760377,62514.0,62513.0,0.3628]
[1728252535435,0.15786005,62514.0,62513.0,0.3628]
[1728252537132,0.18663991,62514.0,62513.0,0.002]
[1728252537433,0.34638363,62514.0,62513.0,0.002]
[1728252538024,0.0983719,62514.0,62513.0,0.002]
[1728252539923,0.2683719,62514.0,62513.0,0.002]
[1728252540126,0.37153625,62514.0,62513.0,0.002]
[1728252541337,0.20153625,62514.0,62513.0,0.002]
[1728252541630,0.16237089,62514.0,62513.0,0.002]
[1728252542032,0.20154744,62514.0,62513.0,0.002]
[1728252542829,0.56234744,62514.0,62513.0,0.002]
[1728252543036,0.52317089,62514.0,62513.0,0.002]
[1728252545034,0.6114518,62514.0,62513.0,0.002]
[1728252546438,0.61145048,62514.0,62513.0,0.002]
[1728252547639,0.25065048,62514.0,62513.0,0.002]
[1728252547836,0.61145048,62514.0,62513.0,0.002]
[1728252548039,0.063992,62511.0,62507.0,0.0037]
[1728252548232,0.07007821,62510.0,62504.0,0.233999]
[1728252548427,0.07007821,62510.0,62506.0,0.11]
[1728252548640,0.13407021,62510.0,62506.0,0.11]
[1728252548840,0.07007821,62509.0,62506.0,0.11]
[1728252549035,0.07007821,62508.0,62506.0,0.11]
[1728252549251,0.07007821,62508.0,62502.0,0.47890316]
[1728252549252,0.07007821,62507.0,62502.0,0.44944]
[1728252549538,0.07007821,62507.0,62503.0,0.11]
[1728252549738,0.18007821,62507.0,62502.0,0.44948]
[1728252550044,0.11,62504.0,62501.0,0.00239972]
[1728252550233,0.11,62504.0,62496.0,0.0037]
[1728252550234,0.064003,62500.0,62496.0,0.0037]
[1728252550543,0.3608,62497.0,62493.0,0.17401]
[1728252550746,0.18008588,62496.0,62493.0,0.06401]
[1728252550938,0.064013,62490.0,62488.0,0.0037]
[1728252551136,0.13410194,62489.0,62484.0,0.0012]
[1728252551338,0.07010462,62488.0,62482.0,0.17402]
[1728252551534,0.095014,62489.0,62485.0,0.11]
[1728252551535,0.03091349,62487.0,62485.0,0.11]
[1728252551839,0.03091349,62486.0,62485.0,0.11]
[1728252552238,0.03091349,62488.0,62482.0,0.17402]
[1728252552435,0.07010566,62487.0,62480.0,0.0024001]
[1728252552637,0.13412166,62487.0,62480.0,0.0024001]
[1728252552843,0.07010566,62486.0,62480.0,0.0024001]
[1728252553143,0.064016,62487.0,62480.0,0.0024001]
[1728252553343,0.064016,62487.0,62481.0,0.17]
[1728252553645,0.064016,62487.0,62480.0,0.0664231]
[1728252553646,0.032,62489.0,62486.0,0.17]
[1728252553942,0.0037,62494.0,62486.0,0.17]
[1728252554250,0.789306,62497.0,62493.0,0.17]
[1728252554542,0.03091266,62496.0,62493.0,0.17]
[1728252554737,0.03091266,62495.0,62493.0,0.17]
[1728252554939,0.785606,62497.0,62493.0,0.17]
[1728252555139,0.785606,62497.0,62493.0,0.23401]
[1728252556150,0.424806,62497.0,62493.0,0.23401]
[1728252557147,0.427806,62497.0,62493.0,0.23501]
[1728252557656,0.427806,62497.0,62493.0,0.23601]
[1728252557657,0.430806,62497.0,62493.0,0.23601]
[1728252557853,0.430806,62497.0,62493.0,0.172]
[1728252558145,0.3668,62497.0,62496.0,0.064007]
[1728252559849,0.3638,62497.0,62496.0,0.065007]
[1728252560039,0.39770781,62497.0,62496.0,0.066007]
[1728252560937,0.39770806,62497.0,62496.0,0.066007]
[1728252565844,0.3668,62497.0,62496.0,0.066007]
[1728252566155,0.39770833,62497.0,62496.0,0.066007]
[1728252567937,0.3668,62497.0,62496.0,0.066007]
[1728252573058,0.006,62497.0,62496.0,0.066007]
[1728252576453,0.006,62497.0,62496.0,0.176007]
[1728252578765,0.006,62497.0,62496.0,0.20473484]
[1728252579755,0.004,62497.0,62496.0,0.20273484]
[1728252580356,0.004,62497.0,62491.0,0.064011]
[1728252580553,0.004,62497.0,62491.0,0.234011]
[1728252580759,0.0319,62496.0,62491.0,0.234011]
[1728252581564,0.0319,62496.0,62495.0,0.17]
[1728252582862,0.0349,62496.0,62495.0,0.171]
[1728252583062,0.07408387,62496.0,62495.0,0.171]
[1728252583259,0.10499236,62496.0,62495.0,0.171]
[1728252583453,0.10799236,62496.0,62495.0,0.172]
[1728252585165,0.10499236,62496.0,62495.0,0.171]
[1728252585357,0.10499236,62496.0,62495.0,0.172]
[1728252585358,0.07609236,62496.0,62495.0,0.172]
[1728252585556,0.07609236,62496.0,62495.0,0.957608]
[1728252585557,0.07608932,62496.0,62495.0,0.957608]
[1728252585757,0.03690715,62496.0,62495.0,0.957608]
[1728252585959,0.03390715,62496.0,62495.0,0.957608]
[1728252586155,0.03690715,62496.0,62495.0,0.957608]
[1728252586675,0.03390715,62496.0,62495.0,0.956608]
[1728252586851,0.03690715,62496.0,62495.0,0.956608]
[1728252589559,0.03690715,62496.0,62495.0,0.234008]
[1728252589758,0.03690715,62496.0,62495.0,0.594808]
[1728252590067,0.006,62496.0,62495.0,0.594808]
[1728252591569,0.006,62496.0,62495.0,0.234008]
[1728252601374,0.00610074,62503.0,62495.0,0.234008]
[1728252601673,0.00240074,62503.0,62502.0,0.234001]
[1728252602378,0.00540074,62503.0,62502.0,0.234001]
[1728252602567,0.03630399,62503.0,62502.0,0.234001]
[1728252602769,0.06720723,62503.0,62502.0,0.234001]
[1728252603074,0.07020723,62503.0,62502.0,0.234001]
[1728252603871,0.03930398,62503.0,62502.0,0.234001]
[1728252604087,0.03630398,62503.0,62502.0,0.234001]
[1728252604262,0.03730398,62503.0,62502.0,0.235001]
[1728252604578,0.00640074,62503.0,62502.0,0.235001]
[1728252604770,0.03730379,62503.0,62502.0,0.065001]
[1728252604965,0.06820794,62503.0,62502.0,0.065001]
[1728252605168,0.15649394,62503.0,62502.0,0.065001]
[1728252605376,0.15649315,62503.0,62502.0,0.065001]
[1728252605881,0.15349315,62503.0,62502.0,0.066001]
[1728252606779,0.11191477,62503.0,62502.0,0.26494568]
[1728252607172,0.11191477,62503.0,62502.0,0.09494568]
[1728252607380,0.11191477,62503.0,62502.0,0.26494568]
[1728252608576,0.11191215,62503.0,62502.0,0.26494568]
[1728252609277,0.11191215,62503.0,62502.0,0.62574568]
[1728252609668,0.08101056,62503.0,62502.0,0.62574568]
[1728252614181,0.001,62503.0,62502.0,0.62574568]
[1728252620485,0.07106996,62503.0,62502.0,0.62574568]
[1728252621785,0.03189861,62503.0,62502.0,0.62574568]
[1728252621990,0.05,62505.0,62504.0,0.063999]
[1728252623397,0.05,62505.0,62504.0,0.064999]
[1728252623602,0.05,62505.0,62504.0,0.065999]
[1728252631890,0.0308,62520.0,62504.0,1.145959]
[1728252632079,0.0308,62520.0,62519.0,0.233983]
[1728252632485,0.0308,62520.0,62519.0,0.594783]
[1728252633599,0.0308,62520.0,62519.0,0.595783]
[1728252633788,0.0308,62520.0,62519.0,0.596783]
[1728252634190,0.0308,62520.0,62519.0,0.595783]
[1728252634498,0.0308,62520.0,62519.0,0.596783]
[1728252635289,0.06996252,62520.0,62519.0,0.596783]
[1728252635489,0.0308,62520.0,62519.0,0.596783]
[1728252635694,0.10085417,62520.0,62519.0,0.596783]
[1728252638087,0.14994955,62520.0,62519.0,0.426783]
[1728252639305,0.14994955,62520.0,62519.0,0.45559623]
[1728252639493,0.14994955,62520.0,62519.0,0.62559623]
[1728252641100,0.06169368,62520.0,62519.0,0.62559623]
[1728252641295,0.0308,62520.0,62519.0,0.62559623]
[1728252641495,0.10085882,62520.0,62519.0,0.62559623]
[1728252641802,0.14994831,62520.0,62519.0,0.62559623]
[1728252642196,0.0308,62520.0,62519.0,0.62559623]
[1728252644601,0.06169445,62520.0,62519.0,0.62559623]
[1728252645194,0.0308,62520.0,62519.0,0.62559623]
[1728252645507,0.15974372,62536.0,62519.0,0.62559623]
[1728252645508,0.0037,62539.0,62538.0,0.063964]
[1728252645691,0.06368689,62540.0,62539.0,0.063963]
[1728252645896,0.06368688,62540.0,62539.0,0.063963]
[1728252646301,0.0328,62540.0,62539.0,0.063963]
[1728252646806,0.0328,62540.0,62539.0,0.064963]
[1728252647604,0.0328,62540.0,62539.0,0.425763]
[1728252648005,0.0328,62540.0,62539.0,0.426763]
[1728252650104,0.0328,62540.0,62539.0,0.3628]
[1728252650308,0.0328,62540.0,62539.0,0.002]
[1728252650309,0.2572467,62540.0,62539.0,0.002]
[1728252650604,0.25834049,62540.0,62534.0,0.19840144]
[1728252650806,0.15936171,62535.0,62534.0,0.02840144]
[1728252651003,0.11911731,62535.0,62533.0,0.063969]
[1728252651303,0.15936171,62536.0,62533.0,0.063969]
[1728252651304,0.11911731,62534.0,62533.0,0.063969]
[1728252651512,0.11911731,62534.0,62533.0,0.424769]
[1728252652402,0.11911731,62534.0,62533.0,0.594769]
[1728252653507,0.12011731,62534.0,62533.0,0.595769]
[1728252654009,0.12211731,62534.0,62533.0,0.596769]
[1728252657305,0.003,62534.0,62533.0,0.596769]
[1728252657813,0.003,62534.0,62533.0,0.62579893]
[1728252667020,0.003,62534.0,62533.0,0.26499893]
[1728252667521,0.003,62534.0,62533.0,0.62579893]
[1728252668424,0.003,62534.0,62533.0,0.26499893]
[1728252668615,0.003,62534.0,62533.0,0.62579893]
[1728252668923,0.03388587,62534.0,62533.0,0.62579893]
[1728252669221,0.03388626,62534.0,62533.0,0.62579893]
[1728252670228,0.003,62534.0,62533.0,0.62579893]
[1728252671917,0.03388557,62534.0,62533.0,0.62579893]
[1728252672312,0.003,62534.0,62533.0,0.62579893]
[1728252672714,0.0730404,62534.0,62533.0,0.62579893]
[1728252674421,0.1221184,62534.0,62533.0,0.62579893]
[1728252674823,0.12211949,62534.0,62533.0,0.56182993]
[1728252675224,0.29741737,62534.0,62533.0,0.56182993]
[1728252675416,1.44114537,62534.0,62533.0,0.172]
[1728252675621,1.25922802,62534.0,62526.0,0.0037]
[1728252675821,0.063974,62528.0,62525.0,0.00239893]
[1728252676022,0.21491949,62527.0,62525.0,0.00239893]
[1728252676222,0.17646802,62526.0,62525.0,0.00239893]
[1728252676418,0.11911949,62526.0,62525.0,0.00239893]
[1728252676622,0.17646802,62526.0,62525.0,0.00239893]
[1728252679629,0.18046802,62526.0,62525.0,0.00239893]
[1728252680330,0.03488557,62526.0,62524.0,0.5308]
[1728252680627,0.0037,62533.0,62524.0,0.5308]
[1728252680815,0.0037,62533.0,62532.0,0.23397]
[1728252681017,0.0968,62540.0,62532.0,0.23397]
[1728252681018,0.1005,62540.0,62534.0,0.063968]
[1728252681225,0.0391546,62539.0,62534.0,0.063968]
[1728252681426,0.0968,62540.0,62538.0,0.3608]
[1728252681723,0.0968,62540.0,62539.0,0.17]
[1728252681922,0.13595447,62540.0,62539.0,0.17]
[1728252682122,0.13595447,62540.0,62538.0,0.3608]
[1728252682325,0.03915447,62539.0,62538.0,0.3608]
[1728252683031,0.20915447,62539.0,62538.0,0.3608]
[1728252683232,0.03915447,62539.0,62538.0,0.3608]
[1728252683438,0.03915447,62539.0,62538.0,0.3618]
[1728252683821,0.04015447,62539.0,62538.0,0.3618]
[1728252684027,0.04015447,62539.0,62538.0,0.3628]
[1728252687140,0.04015594,62539.0,62538.0,0.3628]
[1728252690337,0.0401566,62539.0,62538.0,0.3628]
[1728252690535,0.03188701,62539.0,62538.0,0.3628]
[1728252690839,0.03188701,62539.0,62538.0,0.426764]
[1728252693045,0.07104354,62539.0,62538.0,0.065964]
[1728252695038,0.0710434,62539.0,62538.0,0.065964]
[1728252695539,0.12012344,62539.0,62538.0,0.065964]
[1728252695743,0.17747306,62539.0,62538.0,0.065964]
[1728252699839,0.17747306,62539.0,62538.0,0.002]
[1728252700344,0.05834962,62539.0,62538.0,0.002]
[1728252700542,0.17747309,62539.0,62538.0,0.002]
[1728252702447,0.12012347,62539.0,62538.0,0.002]
[1728252705449,0.12012413,62539.0,62538.0,0.002]
[1728252705947,0.18408713,62539.0,62538.0,0.002]
[1728252706547,0.29408713,62539.0,62538.0,0.002]
[1728252707238,0.29308713,62539.0,62535.0,0.063967]
[1728252707552,0.174963,62539.0,62538.0,0.002]
[1728252707750,0.29408678,62539.0,62538.0,0.002]
[1728252709342,0.29408678,62539.0,62538.0,0.001]
[1728252709537,0.45376963,62539.0,62538.0,0.001]
[1728252710439,0.44716067,62539.0,62538.0,0.002]
[1728252710638,0.28747782,62539.0,62538.0,0.002]
[1728252710844,0.2874777,62539.0,62538.0,0.002]
[1728252711047,0.23012665,62539.0,62538.0,0.002]
[1728252712339,0.22912665,62539.0,62538.0,0.002]
[1728252712540,0.23012665,62539.0,62538.0,0.002]
[1728252712949,0.28012159,62539.0,62538.0,0.536764]
[1728252713141,0.12012665,62539.0,62538.0,0.536764]
[1728252713959,0.001,62539.0,62538.0,0.536764]
[1728252714253,0.12012665,62539.0,62538.0,0.536764]
[1728252714450,0.16091758,62539.0,62538.0,0.536764]
[1728252714649,0.12012665,62539.0,62538.0,0.536764]
[1728252715041,0.12012665,62539.0,62538.0,0.426764]
[1728252717153,0.05734663,62547.0,62538.0,0.536764]
[1728252717154,0.15989816,62542.0,62538.0,0.536764]
[1728252717362,0.0037,62549.0,62541.0,0.11]
[1728252717652,0.17599449,62552.0,62538.0,0.3628]
[1728252717653,0.0060988,62553.0,62549.0,0.063952]
[1728252717957,0.0023988,62553.0,62549.0,0.063952]
[1728252718145,0.11,62552.0,62549.0,0.063952]
[1728252718753,0.11,62552.0,62545.0,0.11]
[1728252719163,0.11,62552.0,62549.0,0.001]
[1728252719348,0.11,62550.0,62549.0,0.002]
[1728252719853,0.11,62550.0,62549.0,0.001]
[1728252720158,0.1428,62550.0,62549.0,0.001]
[1728252720458,0.1428,62550.0,62549.0,0.002]
[1728252720459,0.2028,62550.0,62549.0,0.002]
[1728252721155,0.2028,62550.0,62549.0,0.001]
[1728252721963,0.2028,62550.0,62549.0,0.002]
[1728252723542,0.266752,62550.0,62549.0,0.002]
[1728252724658,0.627552,62550.0,62549.0,0.002]
[1728252725659,0.71578216,62550.0,62549.0,0.002]
[1728252726251,0.87546457,62550.0,62549.0,0.002]
[1728252727256,0.90634909,62550.0,62549.0,0.002]
[1728252728452,0.74666668,62550.0,62549.0,0.002]
[1728252728862,0.38586668,62550.0,62549.0,0.002]
[1728252729370,0.74666668,62550.0,62549.0,0.002]
[1728252729663,0.063954,62548.0,62544.0,0.0037]
[1728252729865,0.17,62546.0,62540.0,0.0037]
[1728252730166,0.11911468,62545.0,62542.0,0.06396]
[1728252731147,0.11911468,62545.0,62544.0,0.001]
[1728252731760,0.11911468,62545.0,62544.0,0.064958]
[1728252731953,0.03915448,62547.0,62542.0,0.171]
[1728252732154,0.11911438,62546.0,62542.0,0.171]
[1728252732356,0.42295234,62550.0,62545.0,0.063957]
[1728252732561,0.03088405,62549.0,62544.0,0.001]
[1728252732755,0.03088405,62548.0,62546.0,0.063956]
[1728252732949,0.03088405,62547.0,62546.0,0.063956]
[1728252736065,0.03188405,62547.0,62546.0,0.065956]
[1728252736760,0.03188405,62547.0,62546.0,0.235956]
[1728252737564,0.03188405,62547.0,62546.0,0.065956]
[1728252738153,0.001,62547.0,62546.0,0.065956]
[1728252738366,0.03188303,62547.0,62546.0,0.065956]
[1728252740561,0.12010894,62547.0,62546.0,0.065956]
[1728252743169,0.12010893,62547.0,62546.0,0.065956]
[1728252743368,0.12010925,62547.0,62546.0,0.065956]
[1728252745569,0.27990278,62547.0,62546.0,0.065956]
[1728252745969,0.27990164,62547.0,62546.0,0.065956]
[1728252747570,0.19167646,62547.0,62546.0,0.065956]
[1728252747763,0.03188293,62547.0,62546.0,0.065956]
[1728252748968,0.001,62547.0,62546.0,0.065956]
[1728252749266,0.07103439,62547.0,62546.0,0.065956]
[1728252752670,0.03188293,62547.0,62546.0,0.065956]
[1728252755161,0.0318817,62547.0,62546.0,0.065956]
[1728252757966,0.0318817,62547.0,62546.0,0.002]
[1728252758270,1.15067335,62547.0,62536.0,0.0112]
[1728252758458,1.15067335,62547.0,62537.0,0.0037]
[1728252758459,0.063964,62538.0,62537.0,0.0037]
[1728252758659,0.173965,62537.0,62530.0,0.03461694]
[1728252758877,0.03915123,62536.0,62530.0,0.00239877]
[1728252759062,0.11,62534.0,62530.0,0.00239877]
[1728252759383,0.11,62531.0,62530.0,0.00239877]
[1728252759767,0.0326,62535.0,62530.0,0.00239877]
[1728252759768,0.142,62534.0,62530.0,0.00239877]
[1728252760371,0.032,62534.0,62530.0,0.00239877]
[1728252761266,0.032,62534.0,62530.0,0.00339877]
[1728252762677,0.03915966,62533.0,62530.0,0.00339877]
[1728252762968,0.03915966,62532.0,62530.0,0.00339877]
[1728252763169,0.03915966,62531.0,62530.0,0.23737077]
[1728252763561,0.032,62534.0,62530.0,0.23737077]
[1728252763766,0.032,62534.0,62530.0,0.23637077]
[1728252764082,0.03088855,62533.0,62530.0,0.23737077]
[1728252764380,0.032,62534.0,62530.0,0.23737077]
[1728252764381,0.03088855,62532.0,62530.0,0.23737077]
[1728252764566,0.03088855,62531.0,62530.0,0.23737077]
[1728252764872,0.032,62534.0,62530.0,0.23737077]
[1728252765174,0.03188848,62533.0,62530.0,0.23737077]
[1728252765375,0.001,62533.0,62530.0,0.23737077]
[1728252765775,0.001,62531.0,62530.0,0.23737077]
[1728252766378,0.001,62533.0,62530.0,0.23737077]
[1728252766682,0.03088847,62532.0,62530.0,0.23737077]
[1728252766883,0.032,62534.0,62531.0,0.063971]
[1728252767981,0.03088841,62533.0,62532.0,0.06397]
[1728252768282,0.03088841,62533.0,62532.0,0.23397]
[1728252768579,0.03188841,62533.0,62532.0,2.03533]
[1728252768882,0.001,62533.0,62532.0,2.03533]
[1728252769081,0.0037,62541.0,62532.0,1.97136]
[1728252769283,0.03088452,62540.0,62538.0,0.063963]
[1728252769484,0.03088452,62539.0,62538.0,0.063963]
[1728252770678,0.001,62541.0,62538.0,0.063963]
[1728252770883,0.001,62541.0,62539.0,0.063963]
[1728252772584,0.001,62541.0,62538.0,0.001]
[1728252772885,0.0324,62545.0,62540.0,0.063962]
[1728252773088,0.002,62541.0,62540.0,0.063962]
[1728252773679,0.003,62541.0,62540.0,0.063962]
[1728252774185,0.003,62541.0,62540.0,0.064962]
[1728252775185,0.003,62541.0,62540.0,0.065962]
[1728252777689,0.06476987,62541.0,62540.0,0.065962]
[1728252778187,0.03388493,62541.0,62540.0,0.065962]
[1728252778388,0.06476917,62541.0,62540.0,0.065962]
[1728252779085,0.03388493,62541.0,62540.0,0.065962]
[1728252780287,0.06476876,62541.0,62540.0,0.065962]
[1728252781278,0.06477037,62541.0,62540.0,0.065962]
[1728252782391,0.06477037,62541.0,62540.0,0.175962]
[1728252783080,0.06477037,62541.0,62540.0,0.065962]
[1728252785687,0.08296342,62541.0,62540.0,0.065962]
[1728252785889,0.19367846,62541.0,62540.0,0.065962]
[1728252786293,0.27364289,62541.0,62540.0,0.065962]
[1728252786499,0.19367846,62541.0,62540.0,0.065962]
[1728252786990,0.28191324,62541.0,62540.0,0.065962]
[1728252787196,0.12211971,62541.0,62540.0,0.065962]
[1728252787393,0.28191324,62541.0,62540.0,0.065962]
[1728252787997,0.12211971,62541.0,62540.0,0.065962]
[1728252788401,0.28191324,62541.0,62540.0,0.065962]
[1728252790686,0.12211971,62541.0,62540.0,0.065962]
[1728252791300,0.12211844,62541.0,62540.0,0.065962]
[1728252792804,0.07304062,62541.0,62540.0,0.065962]
[1728252797308,0.03388561,62541.0,62540.0,0.065962]
[1728252798697,0.003,62541.0,62540.0,0.065962]
[1728252798899,0.03388561,62541.0,62540.0,0.065962]
[1728252799100,0.07303857,62541.0,62540.0,0.065962]
[1728252799606,0.03388561,62541.0,62540.0,0.065962]
[1728252799803,0.16282568,62541.0,62540.0,0.065962]
[1728252800197,0.28194072,62541.0,62540.0,0.065962]
[1728252800703,0.12211504,62541.0,62540.0,0.065962]
[1728252801107,0.28194072,62541.0,62540.0,0.065962]
[1728252801310,0.12211504,62541.0,62540.0,0.065962]